[Event "24th Hoogeschool Zeeland 2022"]
[Site "Vlissingen"]
[Date "2022.08.09"]
[Round "5.3"]
[White "Ponomariov, Ruslan"]
[Black "Royal, Shreyas"]
[Result "1-0"]
[ECO "C88"]
[WhiteElo "2642"]
[BlackElo "2353"]
[Annotator "TA"]
[PlyCount "81"]
[EventDate "2022.08.05"]
[EventType "swiss"]
[EventCountry "NED"]
[SourceTitle "playchess.com"]
[Source "ChessBase"]
[SourceQuality "1"]
[TimeControl "40/5400+30:1800+30"]

{[%evp 21,81,27,28,25,24,21,41,37,43,41,37,0,44,45,49,59,59,52,52,52,108,119,134,148,244,245,231,235,210,154,229,222,264,156,207,206,242,254,241,234,245,229,314,310,300,187,175,186,175,176,198,197,297,317,5197,1610,29984,29985,29993,29994,29995,29996]} 1. e4 {[%emt 0:00:03]} e5 {[%emt 0:00:04]} 2. Nf3 {[%emt 0:00:06]} Nc6 {[%emt 0:00:05]} 3. Bb5 {[%emt 0:00:10]} a6 {[%emt 0:00:05]} 4. Ba4 {[%emt 0:00:07]} Nf6 {[%emt 0:00:07]} 5. O-O {[%emt 0:00:06]} Be7 {[%emt 0:00:18]} 6. Re1 {[%emt 0:00:31]} b5 {[%emt 0:00:25]} 7. Bb3 {[%emt 0:00:09]} d6 {[%emt 0:00:05]} 8. a4 {[%emt 0:00:24]} b4 {[%emt 0:01:06]} 9. c3 {[%emt 0:02:28]} O-O {[%emt 0:18:36]} 10. d3 {[%emt 0:01:02]} Rb8 {[%emt 0:01:21]} 11. Nbd2 {[%emt 0:00:33]} Be6 {[%emt 0:02:02]} 12. Bxe6 {[%emt 0:05:34] C88: Closed Ruy Lopez: Anti-Marshall Systems.} fxe6 {[%emt 0:00:10]} 13. Nc4 $5 {[%emt 0:02:25][%mdl 4] Leaves trodden paths.} bxc3 {[%emt 0:26:55]} 14. bxc3 {[%emt 0:00:40] [#] White is slightly better.} Qe8 $146 {[%emt 0:00:04]} ({Predecessor:} 14... h6 15. a5 Qe8 16. d4 exd4 17. cxd4 Qg6 18. d5 Nd8 19. dxe6 Nxe6 20. e5 dxe5 21. Ncxe5 {1-0 (38) Golubev,M (2461)-Brett,A (2085) Chess.com INT 2022}) 15. Bd2 {[%emt 0:04:23]} Qg6 {[%emt 0:06:16]} 16. Qe2 {[%emt 0:01:43]} Nh5 {[%emt 0:02:12]} 17. Rab1 {[%emt 0:01:54]} Bf6 {[%emt 0:06:45]} 18. Rxb8 {[%emt 0:10:27]} (18. h3 {with more complications.} h6 19. Rxb8 Rxb8 20. Kh2) 18... Rxb8 {[%emt 0:02:03]} 19. g3 {[%emt 0:00:30]} Rf8 {[%emt 0:06:10]} 20. Kg2 {[%emt 0:03:10]} Bd8 {[%emt 0:05:05] Black is now going downhill.} ({Black should play} 20... Rb8 $14) 21. d4 $16 {[%emt 0:03:29][%cal Rd4e5]} Bf6 {[%emt 0:03:58][%cal Re5d4]} 22. dxe5 {[%emt 0:03:59]} dxe5 {[%emt 0:00:08] [#]} (22... Nxe5 $16 23. Ncxe5 Bxe5) 23. Nb2 $1 $18 {[%emt 0:01:52]} Nf4+ {[%emt 0:05:07]} 24. Bxf4 {[%emt 0:00:17]} exf4 {[%emt 0:00:05]} 25. e5 {[%emt 0:04:20]} Bd8 {[%emt 0:00:03]} (25... Be7 $16) 26. Qxa6 {[%emt 0:01:43]} Ne7 {[%emt 0:00:05]} 27. Qd3 {[%emt 0:02:55]} ({White should try} 27. Nd4 $18) 27... Nf5 {[%emt 0:00:42]} (27... Qe8 $16 {was necessary.} 28. a5 fxg3) 28. Qc4 {[%emt 0:13:00]} fxg3 {[%emt 0:02:51]} 29. hxg3 {[%emt 0:00:55][%cal Bh2g3,Bg3g4][%mdl 32]} h5 {[%emt 0:00:20]} 30. Nd3 {[%emt 0:01:32] [#] And now a5 would win.} Qf7 {[%emt 0:05:13]} 31. Qe4 {[%emt 0:04:01] Prevents h4.} h4 {[%emt 0:00:58]} 32. g4 {[%emt 0:01:09]} ({Stronger than} 32. Nxh4 Bxh4 33. gxh4 Nxh4+ 34. Qxh4 Qf3+ 35. Kg1 Qxd3 $11) ({Weaker is} 32. gxh4 Qg6+ 33. Kh3 Bxh4 34. Nxh4 Nxh4 35. Qxg6 (35. Qxh4 $2 Qxd3+ 36. Kh2 Qd2 $17) (35. Kxh4 Rf5 $17) 35... Nxg6 $16) 32... h3+ {[%emt 0:02:36]} 33. Kxh3 {[%emt 0:01:16]} Nd6 {[%emt 0:00:24]} 34. exd6 {[%emt 0:00:20]} Qxf3+ {[%emt 0:00:05]} 35. Kh2 {[%emt 0:00:05]} cxd6 {[%emt 0:00:10]} 36. Qxe6+ {[%emt 0:01:34]} Rf7 {[%emt 0:00:46]} (36... Qf7 $142 37. Kg1 Bh4) 37. Re3 {[%emt 0:02:05]} ({Don't blunder} 37. Qxd6 $2 Bc7 38. Qxc7 Rxc7 $19) 37... Qd1 {[%emt 0:00:07]} (37... Qf6 38. Qe8+ Rf8) 38. Qc8 {[%emt 0:02:44]} (38. Qc4 $142 g6 39. Re8+ Kg7 40. Rxd8) 38... Rf8 {[%emt 0:00:21]} 39. Qc4+ {[%emt 0:00:07] White mates.} Kh7 {[%emt 0:00:26]} 40. Rh3+ {[%emt 0:00:06]} Kg6 {[%emt 0:00:08]} 41. Qe6+ {[%emt 0:31:01] Weighted Error Value: White=0.14 (very precise) /Black=0.38} 1-0

[Event "24th Hoogeschool Zeeland 2022"]
[Site "Vlissingen"]
[Date "2022.08.09"]
[Round "5.4"]
[White "Klepke, Ricardo"]
[Black "Baklan, Vladimir"]
[Result "0-1"]
[ECO "A62"]
[WhiteElo "2293"]
[BlackElo "2589"]
[Annotator "TA"]
[PlyCount "110"]
[EventDate "2022.08.05"]
[EventType "swiss"]
[EventCountry "NED"]
[SourceTitle "playchess.com"]
[Source "ChessBase"]
[SourceQuality "1"]
[TimeControl "40/5400+30:1800+30"]

{[%evp 18,110,33,2,10,8,2,0,2,0,63,-8,-2,-25,45,-145,-106,-97,-89,-105,-62,-67,-68,-154,-77,-131,-122,-146,-100,-80,-100,-87,-91,-132,-130,-120,-101,-383,-387,-467,-379,-345,-231,-206,-224,-211,-226,-206,-204,-220,-166,-488,-495,-629,-304,-325,-283,-509,-491,-495,-479,-803,-793,-672,-649,-715,-675,-848,-827,-958,-958,-1036,-988,-926,-918,-911,-855,-857,-850,-772,-592,-29969,-10892,-29973,-29974,-29967,-29969,-29974,-29978,-29980,-29979,-29978,-29951,-29951,-9520]} 1. d4 {[%emt 0:00:03]} Nf6 {[%emt 0:00:03]} 2. c4 {[%emt 0:00:07]} e6 {[%emt 0:00:03]} 3. g3 {[%emt 0:00:08]} c5 {[%emt 0:00:03]} 4. d5 {[%emt 0:03:46]} d6 {[%emt 0:00:33]} 5. Nc3 {[%emt 0:00:44]} exd5 {[%emt 0:00:04]} 6. cxd5 {[%emt 0:00:32]} g6 {[%emt 0:00:06]} 7. Bg2 {[%emt 0:01:02]} Bg7 {[%emt 0:00:04]} 8. Nf3 {[%emt 0:02:43]} O-O {[%emt 0:00:08]} 9. O-O {[%emt 0:00:38]} Nbd7 {[%emt 0:00:10][%cal Bb8d7,Bd7e5,Be5d3][%mdl 32]} 10. Nd2 {[%emt 0:04:23]} Nh5 {[%emt 0:00:51] [#] A62: Modern Benoni: Fianchetto Variation without early ...Nbd7.} 11. Qb3 $146 {[%emt 0:05:19]} ({Predecessor:} 11. Nb5 Ndf6 12. a4 a6 13. Nc3 Ng4 14. h3 Ne5 15. Nf3 Nxf3+ 16. exf3 f5 17. f4 Bd7 18. a5 {½-½ (29) Peng,X (2467)-Perunovic,M (2597) Paracin 2019}) 11... Qe7 {[%emt 0:07:53]} 12. e4 {[%emt 0:07:08]} Ne5 {[%emt 0:04:58] The position is equal.} 13. a4 {[%emt 0:05:18]} Kh8 {[%emt 0:15:42]} (13... Re8 $11) 14. h3 {[%emt 0:12:09]} (14. f4 $14 Nd3 15. Nb5 Nxc1 16. Raxc1 (16. Rfxc1 a6 $11)) 14... f5 {[%emt 0:04:47]} 15. exf5 {[%emt 0:00:57]} gxf5 {[%emt 0:11:34]} (15... Bxf5 $11 16. Nde4 h6) 16. f4 $2 {[%emt 0:06:11]} (16. Qd1 $14 {keeps the upper hand.} Nf6 17. f4) 16... Nd3 {[%emt 0:06:09] ...Qe3+ is the strong threat.} 17. Kh2 {[%emt 0:02:45]} Rg8 {[%emt 0:03:14] Black is more active.} (17... Qe3 18. Rf3 Nxc1 19. Rxe3 $14) 18. Nb5 {[%emt 0:11:17]} Nxc1 {[%emt 0:20:14]} 19. Raxc1 {[%emt 0:00:46]} a6 $1 {[%emt 0:00:11]} (19... Qe2 $2 20. Nc4 (20. Nxd6 Bd4 $16) 20... Bh6 21. Qc3+ Bg7 22. Qf3 Qxf3 23. Bxf3 Nxg3 24. Kxg3 $18) 20. Na3 {[%emt 0:08:48] [#]} (20. Rfe1 $15 Qd7 21. Na3) 20... b5 {[%emt 0:02:13]} (20... Bf6 $142 $1 21. Rf3 Bd7) 21. Rfe1 {[%emt 0:03:59]} ({Better is} 21. axb5 axb5 22. Rce1) 21... Qf8 {[%emt 0:10:12] aiming for ...Bh6.} 22. Nf1 {[%emt 0:03:56]} c4 {[%emt 0:01:16]} (22... Bf6 $142 23. Ra1 Bd7 24. axb5 axb5) 23. Qc2 $17 {[%emt 0:01:44] [#]} Bd7 $1 {[%emt 0:01:11]} 24. Bf3 {[%emt 0:03:02]} Nf6 {[%emt 0:01:06]} 25. Ne3 {[%emt 0:00:18]} Ne4 $1 {[%emt 0:00:25]} 26. Bxe4 {[%emt 0:02:16]} fxe4 {[%emt 0:00:04]} 27. b3 $2 {[%emt 0:00:19][%mdl 8192] Loses the game.} (27. Rb1 $17 {is a better defense.}) 27... Bd4 $19 {[%emt 0:03:15] Strongly threatening ...Qh6. A strong pair of Bishops.} (27... cxb3 $2 28. Qxb3 Bf6 29. g4 $19) 28. Rcd1 {[%emt 0:05:08] [#]} Qh6 $1 {[%emt 0:02:30]} 29. Qg2 {[%emt 0:02:04]} Rxg3 {[%emt 0:03:41]} 30. Qxg3 {[%emt 0:00:21]} Rg8 {[%emt 0:00:02]} 31. Qxg8+ {[%emt 0:01:44]} Kxg8 {[%emt 0:00:03] The board is on fire.} 32. Rxd4 {[%emt 0:00:24]} Qxh3+ {[%emt 0:02:19]} 33. Kg1 {[%emt 0:00:07]} Qg3+ $40 {[%emt 0:00:50][%mdl 128] Black has strong attack.} ({Not} 33... bxa4 34. Naxc4 (34. Re2 cxb3 35. Rb4 Kf7 $17) 34... Qg3+ 35. Ng2 $14) (33... cxb3 34. axb5 Bg4 35. b6 $11 (35. bxa6 Bf3 $11) (35. Rxe4 Qg3+ 36. Ng2 Bf3 $11)) 34. Kf1 $2 {[%emt 0:01:13]} (34. Ng2 Qxb3 35. axb5 axb5 36. Nxc4 bxc4 37. Rdxe4) 34... Qxf4+ {[%emt 0:00:59]} 35. Ke2 {[%emt 0:03:32]} Qh2+ {[%emt 0:00:27]} (35... Qf3+ $142 36. Kd2 Qf2+ 37. Re2 c3+ 38. Kxc3 Qxe2) 36. Kd1 {[%emt 0:00:13]} Qb2 {[%emt 0:00:04]} ({Worse is} 36... cxb3 37. Rxe4 h6 38. Rf1 $11) 37. Nac2 {[%emt 0:01:54]} (37. Rxe4 {was the only defense.} Qxa3 38. Ke2 Qb2+ 39. Kf3 cxb3 40. axb5 axb5 41. Rh1) 37... cxb3 {[%emt 0:00:04]} 38. axb5 {[%emt 0:01:15]} axb5 {[%emt 0:00:33][%cal Ba6b5,Bb5b4][%mdl 32]} ({Wrong is} 38... bxc2+ $2 39. Nxc2 Bg4+ 40. Kd2 $19) 39. Rxe4 {[%emt 0:01:02]} (39. Rb4 $142 Qc3 40. Kc1) 39... bxc2+ {[%emt 0:00:31]} 40. Nxc2 {[%emt 0:00:07]} Bf5 {[%emt 0:00:24]} 41. Re8+ {[%emt 0:03:11]} Kf7 {[%emt 0:00:42][%csl Gf5][%cal Rb2c2]} 42. R8e7+ {[%emt 0:00:17]} Kf6 {[%emt 0:00:30][%csl Gf5][%cal Rb2c2]} 43. Rc7 {[%emt 0:00:13]} b4 {[%emt 0:04:06]} 44. Rf1 {[%emt 0:03:36]} Kg5 {[%emt 0:08:04]} 45. Rg1+ {[%emt 0:00:34]} Bg4+ {[%emt 0:00:30]} 46. Rxg4+ {[%emt 0:02:29]} Kxg4 {[%emt 0:00:12][%mdl 4096] Endgame KQ-KRN} 47. Rc4+ {[%emt 0:00:05]} Kg3 {[%emt 0:01:01]} 48. Rxb4 {[%emt 0:00:10]} Qc3 {[%emt 0:00:28] Threatens to win with ...h5.} 49. Rd4 {[%emt 0:01:29]} h5 {[%emt 0:00:39] ( -> ...h4)} 50. Rd2 {[%emt 0:00:38]} h4 {[%emt 0:00:39] Black mates.} 51. Nd4 {[%emt 0:01:06]} Qa1+ {[%emt 0:01:58]} 52. Ke2 {[%emt 0:00:51]} h3 {[%emt 0:00:28]} 53. Ke3 {[%emt 0:03:03]} Qc3+ {[%emt 0:00:43]} 54. Rd3 {[%emt 0:00:40] [#]} Qxd3+ $3 {[%emt 0:01:09][%mdl 512]} 55. Kxd3 {[%emt 0:00:07]} h2 {[%emt 0:00:02] Weighted Error Value: White=0.96/Black=0.27 (precise)} (55... Kg4 $142 56. Nb5 h2 57. Nxd6 h1=Q 58. Kd4 Kf4 59. Nc4 Qg1+ 60. Kd3 Qd1+ 61. Nd2 Ke5 62. d6 Kxd6 63. Ke3 Qe1+ 64. Kd3 Kd5 65. Kc2 Qg3 66. Nb3 Qc7+ 67. Kb2 Kc4 68. Kc2 Qh2+ 69. Nd2+ Kd4 70. Kc1 Kd3 71. Kb2 Qxd2+ 72. Kb3 Qf4 73. Ka2 Qb8 74. Ka3 Kc3 75. Ka4 Qb4#) 0-1

[Event "24th Hoogeschool Zeeland 2022"]
[Site "Vlissingen"]
[Date "2022.08.09"]
[Round "5.5"]
[White "Beerdsen, Thomas"]
[Black "De Jong, Tom"]
[Result "1/2-1/2"]
[ECO "C10"]
[WhiteElo "2500"]
[BlackElo "2203"]
[Annotator "TA"]
[PlyCount "61"]
[EventDate "2022.08.05"]
[EventType "swiss"]
[EventCountry "NED"]
[SourceTitle "playchess.com"]
[Source "ChessBase"]
[SourceQuality "1"]
[TimeControl "40/5400+30:1800+30"]

{[%evp 19,61,9,24,31,37,-16,-12,-20,-7,-40,-25,-43,0,0,0,0,0,0,1,0,0,0,0,0,93,23,101,0,0,-76,45,0,0,0,1654,0,0,0,0,0,0,0,0,0]} 1. e4 {[%emt 0:00:04] Finkel,A} e6 {[%emt 0:00:25]} 2. d4 {[%emt 0:00:07]} d5 {[%emt 0:00:03]} 3. Nc3 {[%emt 0:00:07]} dxe4 {[%emt 0:00:18]} 4. Nxe4 {[%emt 0:00:08]} Nd7 {[%emt 0:00:05]} 5. Nf3 {[%emt 0:02:54]} Ngf6 {[%emt 0:01:52]} 6. Bg5 {[%emt 0:00:15]} h6 {[%emt 0:01:34]} 7. Nxf6+ {[%emt 0:01:31]} Nxf6 {[%emt 0:00:13]} 8. Bxf6 {[%emt 0:00:21]} Qxf6 {[%emt 0:06:08]} 9. Bd3 {[%emt 0:01:21]} Bd6 {[%emt 0:07:10] 9...Bd7 is more fashionable.} 10. Qe2 {[%emt 0:01:00]} Bd7 {[%emt 0:04:51]} 11. O-O {[%emt 0:07:06] C10: French with 3 Nc3: Unusual Black 3rd moves and 3...dxe4.} O-O-O {[%emt 0:08:17]} 12. Be4 {[%emt 0:01:13]} (12. b4 $14) 12... g5 $11 {[%emt 0:04:55] [#]} 13. Rad1 $146 {[%emt 0:04:00][%cal Of3e5]} ({Predecessor:} 13. c4 g4 14. Ne5 Bxe5 15. dxe5 Qg5 16. f4 gxf3 17. Rxf3 Be8 18. Re3 h5 19. c5 {½-½ (49) Bruzon Batista,L (2677)-Akobian,V (2600) Merida 2005 CBM 111 [Finkel,A]}) 13... c6 {[%emt 0:15:15]} 14. g3 {[%emt 0:06:38]} h5 {[%emt 0:04:03]} 15. Qe3 {[%emt 0:01:12]} Rdg8 {[%emt 0:04:02]} 16. Ne5 {[%emt 0:02:21][%cal Ob2b4]} Be8 {[%emt 0:03:00]} 17. Rfe1 {[%emt 0:08:18]} g4 {[%emt 0:03:56]} 18. c4 {[%emt 0:07:09][%cal Bc2c4,Bc4c5][%mdl 32]} h4 {[%emt 0:02:25]} 19. Bg2 {[%emt 0:00:24]} Rh5 {[%emt 0:05:41]} 20. c5 {[%emt 0:00:55]} Bc7 {[%emt 0:01:17]} 21. b4 {[%emt 0:06:17][%cal Ob4b5] [#] aiming for b5!} Rgg5 {[%emt 0:05:59]} (21... Qh6 $11 {keeps the balance.}) 22. Nc4 {[%emt 0:13:51]} ({White should play} 22. Qa3 $16 {Strongly threatening b5.} h3 23. f4 gxf3 24. Bxf3 (24. Qxf3 $2 Rf5 $19)) 22... Qh8 {[%emt 0:02:32]} (22... Rh8 $11) 23. b5 {[%emt 0:11:34]} ({Better is} 23. gxh4 $16 Rf5 24. Nd6+ Kb8 25. Nxf5 Rxf5 26. h3 (26. Be4 Rf6 $11)) 23... hxg3 $1 {[%emt 0:06:14]} 24. hxg3 {[%emt 0:00:13] [#]} (24. fxg3 $11 {remains equal.} Rxh2 25. Qxg5 Rxg2+ 26. Kxg2 Qh3+ 27. Kg1 Qxg3+ 28. Kf1 Qh3+ 29. Kf2 Qg3+ 30. Kf1 Qh3+ 31. Kf2 Qg3+ 32. Kf1) 24... Rh2 $1 {[%emt 0:01:07]} 25. Qxg5 {[%emt 0:01:01] Really sharp! Active counter play!} Rxg2+ $1 {[%emt 0:00:07]} 26. Kxg2 {[%emt 0:01:44]} Qh3+ {[%emt 0:00:03]} 27. Kg1 {[%emt 0:00:06]} Bxg3 $1 {[%emt 0:00:08] The position is equal.} 28. Nd6+ {[%emt 0:02:26]} Kd7 $1 {[%emt 0:00:23]} 29. bxc6+ {[%emt 0:00:32]} bxc6 {[%emt 0:00:21] ( -> ...Qh2+)} 30. fxg3 {[%emt 0:13:07]} Qxg3+ {[%emt 0:00:06]} 31. Kf1 {[%emt 0:00:07] Weighted Error Value: White=0.27 (precise) /Black=0.28 (precise)} 1/2-1/2

[Event "24th Hoogeschool Zeeland 2022"]
[Site "Vlissingen"]
[Date "2022.08.09"]
[Round "5.6"]
[White "Jeanne, Mickael"]
[Black "Schoppen, Casper"]
[Result "1/2-1/2"]
[ECO "D43"]
[WhiteElo "2145"]
[BlackElo "2507"]
[Annotator "TA"]
[PlyCount "93"]
[EventDate "2022.08.05"]
[EventType "swiss"]
[EventCountry "NED"]
[SourceTitle "playchess.com"]
[Source "ChessBase"]
[SourceQuality "1"]
[TimeControl "40/5400+30:1800+30"]

{[%evp 16,93,0,2,21,18,18,18,40,37,62,34,39,-1,30,23,66,43,52,44,91,72,84,37,49,29,33,0,62,59,60,39,77,85,87,56,54,43,45,0,60,0,42,0,28,34,59,35,74,76,65,0,65,69,72,56,93,0,83,66,103,93,180,138,139,136,131,147,197,104,197,100,129,92,90,32,37,27,100,95]} 1. Nf3 {[%emt 0:00:04]} d5 {[%emt 0:08:11]} 2. d4 {[%emt 0:00:09]} Nf6 {[%emt 0:00:05]} 3. c4 {[%emt 0:00:34]} e6 {[%emt 0:00:05]} 4. Nc3 {[%emt 0:00:14]} c6 {[%emt 0:00:43]} 5. Bg5 {[%emt 0:08:33]} h6 {[%emt 0:01:19]} 6. Bxf6 {[%emt 0:00:55]} Qxf6 {[%emt 0:00:05]} 7. g3 {[%emt 0:00:11]} Nd7 {[%emt 0:03:52]} 8. Bg2 {[%emt 0:01:04]} dxc4 {[%emt 0:02:57]} 9. O-O {[%emt 0:05:17]} g6 {[%emt 0:13:02] D43: Semi-Slav: 5 Bg5 h6.} 10. e3 {[%emt 0:04:46]} Bg7 {[%emt 0:01:45]} 11. Nd2 {[%emt 0:00:49]} O-O {[%emt 0:04:47] The position is equal.} 12. Nxc4 {[%emt 0:01:12]} Qe7 {[%emt 0:00:10] [#]} 13. a4 $146 {[%emt 0:05:18][%cal Ba2a4,Ba4a5][%mdl 32]} ({Predecessor:} 13. Rc1 Nb6 14. Qb3 Nxc4 15. Qxc4 Bd7 16. Rfd1 Rfd8 17. e4 Rac8 18. e5 c5 19. f4 {½-½ (42) Citak,S (2310)-Tissir,M (2482) Gibraltar 2007}) 13... Rd8 {[%emt 0:03:10]} 14. Qb3 {[%emt 0:14:31]} Rb8 {[%emt 0:09:41]} (14... e5 $5 {[%cal Re5d4]}) 15. Rfd1 {[%emt 0:03:29]} h5 {[%emt 0:11:11]} 16. a5 {[%emt 0:07:59]} e5 {[%emt 0:04:50]} 17. d5 $1 {[%emt 0:02:22]} cxd5 {[%emt 0:02:53]} (17... Nc5 $14 18. Qa3 cxd5) 18. Nxd5 $16 {[%emt 0:04:33]} ({Don't take} 18. Bxd5 Nc5 19. Qb4 Bf5 $11) 18... Qf8 {[%emt 0:01:24]} 19. Qa3 {[%emt 0:04:59] White is much more active.} (19. Qd3 $1 $16) 19... Nc5 $14 {[%emt 0:01:22]} 20. b4 {[%emt 0:03:36]} Ne6 {[%emt 0:01:18]} 21. b5 {[%emt 0:03:01]} Nc5 {[%emt 0:01:27]} (21... e4 $11) 22. b6 {[%emt 0:01:27]} axb6 {[%emt 0:01:58]} 23. Ncxb6 {[%emt 0:00:51] Threatens to win with Rac1.} Be6 {[%emt 0:08:43]} 24. Rac1 {[%emt 0:04:05]} Na6 {[%emt 0:01:32]} 25. Qb3 {[%emt 0:03:07]} Rd6 {[%emt 0:05:48]} 26. Nc4 {[%emt 0:04:47]} Rdd8 {[%emt 0:02:04]} 27. Ncb6 {[%emt 0:00:14]} Rd6 $1 {[%emt 0:01:36]} 28. Nc4 {[%emt 0:00:54]} (28. e4 $14) 28... Rc6 {[%emt 0:00:18]} 29. Ncb6 {[%emt 0:04:52]} Rxc1 {[%emt 0:00:37]} 30. Rxc1 {[%emt 0:00:07]} Qd6 {[%emt 0:01:12]} 31. Qb5 {[%emt 0:02:14]} Kh8 {[%emt 0:02:48]} 32. Nc4 {[%emt 0:02:33]} Qd8 {[%emt 0:00:25]} 33. Ncb6 {[%emt 0:00:41]} ({Better is} 33. Rd1 $14) 33... Kg8 {[%emt 0:01:37]} (33... Qd6 $1 $11) 34. h4 $36 {[%emt 0:01:10][%mdl 2048] White fights for an advantage.} Qd6 {[%emt 0:01:07]} 35. Nc4 {[%emt 0:00:36]} Qd8 {[%emt 0:00:45]} 36. Ncb6 {[%emt 0:00:04]} (36. Rd1 $16) 36... Kh7 {[%emt 0:01:02]} (36... Qd6 $11 {keeps the balance.}) 37. Kh2 {[%emt 0:02:22]} f5 {[%emt 0:00:56]} 38. e4 {[%emt 0:00:53]} Qd6 {[%emt 0:01:09]} (38... f4 $16 {was worth a try.}) 39. Nc4 {[%emt 0:01:16] Pair of Knights!} Qc5 {[%emt 0:00:56] [#]} 40. Qxc5 {[%emt 0:01:42]} Nxc5 {[%emt 0:00:02]} 41. exf5 {[%emt 0:03:49]} Bxf5 {[%emt 0:10:24]} (41... gxf5 $16 42. Nxe5 Ne4) 42. Nxe5 {[%emt 0:01:44]} Ne6 {[%emt 0:02:46] [#]} (42... Bxe5 $16 43. Rxc5 Bd4 44. Rc7+ Kh8) 43. f4 {[%emt 0:06:38]} (43. Nc4 $1 $18) 43... Ra8 $16 {[%emt 0:02:23]} 44. Ra1 {[%emt 0:01:43]} Nc5 {[%emt 0:01:31]} 45. Nc7 {[%emt 0:08:58]} (45. Ra3 $16) 45... Rc8 $1 $14 {[%emt 0:05:01]} 46. Nb5 {[%emt 0:03:16] Strongly threatening Nd6.} Rd8 {[%emt 0:00:22] Prevents Nd6.} (46... Nd3 $11 {remains equal.}) 47. Ra2 {[%emt 0:00:18] Weighted Error Value: White=0.24 (precise) /Black=0.28 (precise)} 1/2-1/2